bitfinex-derivatives/quotes_SOLF0:USTF0_20250105
["timestamp","ask_amount","ask_price","bid_price","bid_amount"]
[1736066581532,7.2919752,215.45,215.4,7.2919752]
[1736066581721,7.2919752,215.45,215.38,7.2919752]
[1736066582627,2.3215,215.42,215.38,7.2919752]
[1736066595332,2.3215,215.42,215.39,7.2919752]
[1736066596328,2.3215,215.42,215.36,12.37900566]
[1736066596527,2.3215,215.42,215.38,7.2919752]
[1736066598837,2.3217,215.41,215.38,7.2919752]
[1736066599736,7.2919752,215.46,215.38,7.2919752]
[1736066599937,2.3217,215.4,215.38,7.2919752]
[1736066602034,7.2919752,215.46,215.38,7.2919752]
[1736066602337,6.08309172,215.48,215.36,5.98490566]
[1736066602338,7.2919752,215.44,215.36,5.98490566]
[1736066603241,7.2919752,215.42,215.36,5.98490566]
[1736066603442,2.3221,215.38,215.36,5.98490566]
[1736066604142,2.3221,215.37,215.36,5.98490566]
[1736066610541,4.97593676,215.47,215.37,2.322]
[1736066610746,1.5024,215.48,215.36,13.27688086]
[1736066610747,2.6,215.48,215.39,7.2919752]
[1736066610940,9.8919752,215.48,215.39,7.2919752]
[1736066612547,2.3215,215.43,215.39,7.2919752]
[1736066615847,2.3215,215.42,215.39,7.2919752]
[1736066616647,7.2919752,215.44,215.37,7.2919752]
[1736066617048,2.3218,215.4,215.36,5.98490566]
[1736066617644,7.2919752,215.42,215.36,5.98490566]
[1736066618936,2.3217,215.41,215.36,5.98490566]
[1736066619139,7.2919752,215.42,215.36,5.98490566]
[1736066620246,2.3219,215.39,215.36,5.98490566]
[1736066622049,2.322,215.38,215.36,5.98490566]
[1736066623149,2.3221,215.37,215.34,7.2919752]
[1736066623548,2.3221,215.37,215.33,39.30803743]
[1736066623747,2.3221,215.37,215.33,46.60001263]
[1736066625049,2.3221,215.37,215.35,7.2919752]
[1736066627547,2.3222,215.36,215.33,42.55581263]
[1736066627943,7.2919752,215.4,215.33,42.55581263]
[1736066628256,2.3224,215.34,215.33,42.55581263]
[1736066629254,2.3224,215.34,215.33,35.26383743]
[1736066631757,2.3224,215.34,215.33,42.55581263]
[1736066631954,2.3223,215.35,215.33,42.55581263]
[1736066635056,7.2919752,215.4,215.33,42.55581263]
[1736066635258,2.3222,215.36,215.33,42.55581263]
[1736066639358,2.3222,215.36,215.33,7.2919752]
[1736066639564,2.3222,215.36,215.31,2.3227]
[1736066639855,2.3222,215.36,215.32,7.2919752]
[1736066640060,2.3222,215.36,215.31,2.3227]
[1736066640258,7.2919752,215.39,215.32,7.2919752]
[1736066640454,7.2919752,215.35,215.3,7.2919752]
[1736066640655,7.2919752,215.35,215.28,7.2919752]
[1736066641263,2.3226,215.33,215.28,9.6149752]
[1736066642966,7.2919752,215.35,215.28,7.2919752]
[1736066643156,2.3227,215.32,215.28,7.2919752]
[1736066643565,7.2919752,215.35,215.28,7.2919752]
[1736066643764,2.3227,215.31,215.28,7.2919752]
[1736066643962,7.2919752,215.33,215.26,4.0619]
[1736066644162,7.2919752,215.33,215.26,11.3538752]
[1736066644666,7.2919752,215.33,215.25,7.2919752]
[1736066645559,2.3229,215.3,215.25,9.6153752]
[1736066646356,2.323,215.29,215.24,7.2919752]
[1736066646969,2.3232,215.27,215.23,9.8919752]
[1736066647755,2.3235,215.25,215.21,16.93415608]
[1736066648656,2.3235,215.25,215.21,19.25795608]
[1736066649769,7.2919752,215.29,215.21,19.25795608]
[1736066649963,7.2919752,215.29,215.23,7.2919752]
[1736066650174,9.8919752,215.35,215.27,7.2919752]
[1736066650860,7.2919752,215.35,215.27,7.2919752]
[1736066651568,2.3227,215.31,215.27,7.2919752]
[1736066652065,2.3227,215.31,215.26,2.3232]
[1736066652066,2.3226,215.32,215.29,7.2919752]
[1736066652271,54.31827357,215.37,215.29,7.2919752]
[1736066652569,54.31827357,215.37,215.31,7.2919752]
[1736066653263,2.3223,215.36,215.31,7.2919752]
[1736066653660,54.31827357,215.37,215.31,7.2919752]
[1736066653860,56.64037357,215.37,215.31,9.6146752]
[1736066655474,2.3222,215.36,215.31,9.6146752]
[1736066666881,2.6,215.41,215.33,7.2919752]
[1736066667085,2.6,215.41,215.35,7.2919752]
[1736066667379,2.3219,215.39,215.35,7.2919752]
[1736066667577,7.2919752,215.42,215.35,7.2919752]
[1736066667976,2.3219,215.4,215.35,7.2919752]
[1736066669687,2.3219,215.39,215.35,7.2919752]
[1736066672991,9.77131496,215.42,215.35,7.2919752]
[1736066673188,9.77131496,215.42,215.31,2.9832]
[1736066673189,2.3217,215.41,215.37,7.2919752]
[1736066677796,2.3217,215.41,215.35,4.9223]
[1736066677995,2.3217,215.41,215.36,7.2919752]
[1736066678596,2.3218,215.4,215.36,7.2919752]
[1736066678896,2.47933976,215.42,215.36,7.2919752]
[1736066679097,2.3217,215.41,215.36,7.2919752]
[1736066679296,2.47933976,215.42,215.36,7.2919752]
[1736066680493,2.3218,215.4,215.36,7.2919752]
[1736066684505,2.47933976,215.42,215.36,7.2919752]
[1736066684700,4.80093976,215.42,215.36,7.2919752]
[1736066685503,4.80093976,215.42,215.38,7.2919752]
[1736066687815,2.3217,215.41,215.38,7.2919752]
[1736066691316,2.47933976,215.42,215.38,7.2919752]
[1736066692415,2.3218,215.4,215.38,7.2919752]
[1736066692611,2.3218,215.4,215.36,7.2919752]
[1736066695018,2.47933976,215.42,215.36,7.2919752]
[1736066696118,2.3218,215.4,215.36,7.2919752]
[1736066700826,2.3218,215.4,215.38,7.2919752]
[1736066701423,2.47933976,215.42,215.38,7.2919752]
[1736066701624,7.2919752,215.48,215.41,7.2919752]
[1736066702228,2.3212,215.45,215.41,7.2919752]
[1736066703825,7.2919752,215.48,215.41,7.2919752]
[1736066704026,2.3213,215.44,215.41,7.2919752]
[1736066705826,2.3212,215.46,215.42,2.3215]
[1736066707130,2.3213,215.45,215.41,7.2919752]
[1736066708228,7.2919752,215.48,215.41,7.2919752]
[1736066708428,2.3214,215.44,215.41,7.2919752]
[1736066717930,1.4904,215.53,215.43,7.2919752]
[1736066718129,7.2919752,215.53,215.46,7.2919752]
[1736066718434,2.3207,215.5,215.46,7.2919752]
[1736066723037,2.321,215.47,215.41,6.7025]
[1736066723234,2.321,215.47,215.42,7.2919752]
[1736066724339,2.321,215.47,215.44,7.2919752]
[1736066725430,2.3208,215.49,215.46,7.2919752]
[1736066726642,2.3207,215.51,215.46,7.2919752]
[1736066727042,2.3207,215.51,215.48,7.2919752]
[1736066727649,7.2919752,215.53,215.48,7.2919752]
[1736066728148,3.57024926,215.54,215.48,7.2919752]
[1736066728545,5.89054926,215.54,215.5,7.2919752]
[1736066728748,2.3203,215.54,215.5,7.2919752]
[1736066729953,8.7214752,215.58,215.5,7.2919752]
[1736066730849,8.7214752,215.58,215.52,7.2919752]
[1736066731453,2.3201,215.56,215.52,7.2919752]
[1736066731853,8.7214752,215.58,215.52,7.2919752]
[1736066732256,2.6,215.6,215.52,7.2919752]
[1736066732562,7.2919752,215.59,215.52,7.2919752]
[1736066733658,2.3201,215.56,215.52,7.2919752]
[1736066734158,2.3204,215.54,215.48,6.6543]
[1736066734360,2.3204,215.54,215.5,7.2919752]
[1736066735857,2.3204,215.54,215.48,6.6543]
[1736066736160,2.3204,215.54,215.49,7.2919752]
[1736066737354,2.3204,215.53,215.49,7.2919752]
[1736066738855,2.3205,215.52,215.48,6.6543]
[1736066739060,2.3205,215.52,215.5,7.2919752]
[1736066740060,7.2919752,215.53,215.45,3.60972378]
[1736066740255,7.2919752,215.51,215.45,3.60972378]
[1736066740461,7.2919752,215.49,215.41,2.6]
[1736066740757,2.3213,215.44,215.41,2.6]
[1736066742457,7.2919752,215.45,215.38,4.4187]
[1736066742657,7.2919752,215.43,215.38,1.4676]
[1736066742853,7.2919752,215.43,215.37,42.55030587]
[1736066744466,2.3215,215.42,215.37,42.55030587]
[1736066745062,2.3214,215.44,215.39,7.2919752]
[1736066746367,2.3214,215.44,215.41,7.2919752]
[1736066747056,2.3214,215.43,215.41,7.2919752]
[1736066747261,2.3214,215.43,215.39,7.2919752]
[1736066748559,7.2919752,215.47,215.39,7.2919752]
[1736066748966,7.2919752,215.47,215.41,7.2919752]
[1736066749165,2.3215,215.43,215.41,7.2919752]
[1736066749462,7.2919752,215.47,215.39,7.2919752]
[1736066750467,2.3217,215.41,215.39,7.2919752]
[1736066750659,7.2919752,215.45,215.39,7.2919752]
[1736066751061,2.3217,215.41,215.39,7.2919752]
[1736066754670,2.3214,215.44,215.39,7.2919752]
[1736066754866,7.2919752,215.47,215.39,7.2919752]
[1736066755171,2.6,215.5,215.43,7.2919752]
[1736066756073,2.3212,215.45,215.43,7.2919752]
[1736066758365,2.3208,215.49,215.43,7.2919752]
[1736066758574,11.3789752,215.51,215.45,7.2919752]
[1736066758770,11.3789752,215.51,215.4,2.6]
[1736066758969,2.3208,215.49,215.43,7.2919752]
[1736066759165,11.3789752,215.51,215.43,7.2919752]
[1736066759363,4.087,215.51,215.43,7.2919752]
[1736066759567,2.3213,215.45,215.43,7.2919752]
[1736066761467,1.487,215.51,215.43,7.2919752]
[1736066761671,9.8919752,215.51,215.43,7.2919752]
[1736066761867,9.8919752,215.51,215.45,7.2919752]
[1736066762468,2.3211,215.47,215.45,7.2919752]
[1736066763969,2.3209,215.49,215.45,7.2919752]
[1736066766171,2.3209,215.48,215.45,7.2919752]
[1736066767869,7.2919752,215.51,215.45,7.2919752]
[1736066768069,2.3212,215.46,215.43,7.2919752]
[1736066769971,2.3213,215.45,215.41,7.2919752]
[1736066770175,7.2919752,215.49,215.41,7.2919752]
[1736066771478,2.3213,215.45,215.41,7.2919752]
[1736066773475,2.3215,215.43,215.41,7.2919752]
[1736066773673,7.2919752,215.49,215.41,7.2919752]
[1736066774472,2.321,215.47,215.41,7.2919752]
[1736066774678,7.2919752,215.49,215.41,7.2919752]
[1736066774879,9.8919752,215.49,215.41,7.2919752]
[1736066775277,2.3215,215.43,215.41,7.2919752]
[1736066775573,7.2919752,215.45,215.39,7.2919752]
[1736066775778,7.2919752,215.45,215.37,9.8919752]
[1736066776177,2.6,215.49,215.37,9.8919752]
[1736066776480,7.2919752,215.45,215.39,7.2919752]
[1736066776981,2.3217,215.42,215.39,7.2919752]
[1736066777280,7.2919752,215.45,215.39,7.2919752]
[1736066778484,2.3218,215.41,215.39,7.2919752]
[1736066779585,7.2919752,215.43,215.36,1.4696]
[1736066779778,7.2919752,215.43,215.36,8.7615752]
[1736066781586,2.3218,215.4,215.36,8.7615752]
[1736066782480,2.3218,215.4,215.38,7.2919752]
[1736066784285,1.4866,215.48,215.38,9.6138752]
[1736066784286,2.3209,215.48,215.38,9.6138752]
[1736066784484,2.6,215.48,215.42,7.2919752]
[1736066784983,2.3213,215.45,215.42,7.2919752]
[1736066785378,2.3213,215.44,215.42,7.2919752]
[1736066788387,3.48281246,215.51,215.42,7.2919752]
[1736066788388,6.08281246,215.51,215.42,7.2919752]
[1736066788587,2.6,215.51,215.45,7.2919752]
[1736066789089,2.3211,215.47,215.45,7.2919752]
[1736066789484,2.3209,215.49,215.45,7.2919752]
[1736066789682,2.6,215.51,215.45,7.2919752]
[1736066789880,11.11847595,215.52,215.45,7.2919752]
[1736066790090,2.3209,215.48,215.45,7.2919752]
[1736066792793,2.3209,215.48,215.42,2.3215]
[1736066793090,2.3209,215.48,215.45,7.2919752]
[1736066796695,3.82650075,215.52,215.47,7.2919752]
[1736066796994,3.82650075,215.52,215.49,7.2919752]
[1736066797191,3.82650075,215.52,215.47,7.2919752]
[1736066797591,11.11847595,215.52,215.45,9.8919752]
[1736066797797,11.11847595,215.52,215.45,7.2919752]
[1736066797798,2.321,215.48,215.45,7.2919752]
[1736066798093,11.11847595,215.52,215.45,7.2919752]
[1736066798294,11.11847595,215.52,215.42,2.6]
[1736066798495,2.3211,215.46,215.43,7.2919752]
[1736066799289,7.2919752,215.5,215.43,7.2919752]
[1736066799496,2.321,215.47,215.43,7.2919752]
[1736066802097,2.321,215.47,215.45,7.2919752]
[1736066808405,13.71847595,215.52,215.45,7.2919752]
[1736066808600,2.3213,215.44,215.41,13.93619058]
[1736066809100,7.2919752,215.48,215.41,13.93619058]
[1736066809896,7.2919752,215.48,215.41,6.64421538]
[1736066810204,2.3214,215.43,215.41,6.64421538]
[1736066811901,2.3214,215.43,215.4,7.2919752]
[1736066811902,2.3215,215.42,215.4,7.2919752]
[1736066816611,2.3215,215.42,215.37,2.3221]
[1736066816811,2.3215,215.42,215.39,7.2919752]
[1736066817816,7.2919752,215.46,215.39,7.2919752]
[1736066818018,2.3217,215.41,215.39,7.2919752]
[1736066819117,2.3218,215.4,215.39,7.2919752]
[1736066824418,7.2919752,215.44,215.37,7.2919752]
[1736066824727,7.2919752,215.4,215.36,6.61652572]
[1736066825022,2.3221,215.37,215.36,6.61652572]
[1736066825222,7.2919752,215.4,215.33,7.2919752]
[1736066825428,7.2919752,215.38,215.33,7.2919752]
[1736066825826,2.3221,215.37,215.33,7.2919752]
[1736066826022,7.2919752,215.38,215.33,7.2919752]
[1736066826426,2.3223,215.36,215.33,7.2919752]
[1736066827930,2.3223,215.36,215.29,2.3229]
[1736066828238,2.3223,215.36,215.32,7.2919752]
[1736066830239,2.3223,215.36,215.34,7.2919752]
[1736066831832,4.3913,215.46,215.34,9.6143752]
[1736066832136,7.2919752,215.44,215.37,7.2919752]
[1736066832337,2.3218,215.4,215.37,7.2919752]
[1736066835238,2.3219,215.39,215.35,7.2919752]
[1736066835734,7.2919752,215.38,215.29,2.6]
[1736066835940,7.2919752,215.38,215.32,7.2919752]
[1736066838142,2.3223,215.36,215.32,7.2919752]
[1736066839837,7.2919752,215.4,215.32,7.2919752]
[1736066840042,9.6138752,215.4,215.34,7.2919752]
[1736066840242,7.2919752,215.4,215.34,7.2919752]
[1736066840542,2.3219,215.39,215.34,7.2919752]
[1736066840845,2.3219,215.39,215.34,9.6143752]
[1736066841845,2.3219,215.39,215.34,7.2919752]
[1736066842442,7.2919752,215.4,215.34,7.2919752]
[1736066844445,2.322,215.38,215.34,7.2919752]
[1736066847546,7.2919752,215.42,215.34,7.2919752]
[1736066847745,7.2919752,215.42,215.36,7.2919752]
[1736066848249,2.3219,215.4,215.36,7.2919752]
[1736066850550,7.2919752,215.42,215.34,7.2919752]
[1736066851443,2.3219,215.39,215.34,7.2919752]
[1736066853855,2.322,215.38,215.34,7.2919752]
[1736066854045,7.2919752,215.42,215.34,7.2919752]
[1736066854252,7.2919752,215.42,215.35,2.3222]
[1736066854656,2.3218,215.4,215.35,2.3222]
[1736066857362,2.3217,215.41,215.36,2.3221]
[1736066865865,7.2919752,215.42,215.35,7.2919752]
[1736066865866,7.2919752,215.44,215.35,7.2919752]
[1736066866060,2.6,215.47,215.4,2.3217]
[1736066866265,9.8919752,215.47,215.4,2.3217]
[1736066866665,13.3754339,215.47,215.4,2.3217]
[1736066866864,2.3212,215.45,215.39,9.6137752]
[1736066867371,7.2919752,215.41,215.34,1.5077]
[1736066867564,9.8919752,215.41,215.34,1.5077]
[1736066868458,2.3221,215.38,215.34,1.5077]
[1736066870464,2.3222,215.36,215.3,7.2919752]
[1736066870665,7.2919752,215.35,215.29,6.33296573]
[1736066871058,2.3224,215.34,215.29,6.33296573]
[1736066875567,2.3224,215.34,215.3,7.2919752]
[1736066876270,2.3221,215.37,215.32,7.2919752]
[1736066879372,2.3221,215.37,215.34,7.2919752]
[1736066881376,2.3221,215.37,215.32,7.2919752]
[1736066882173,2.3222,215.36,215.32,7.2919752]
[1736066885376,7.2919752,215.39,215.29,6.33296573]
[1736066885679,7.2919752,215.37,215.29,6.33296573]
[1736066885872,7.2919752,215.37,215.29,13.62494093]
[1736066887173,2.3223,215.35,215.29,13.62494093]
[1736066887373,7.2919752,215.37,215.29,13.62494093]
[1736066888184,7.2919752,215.37,215.31,7.2919752]
[1736066888482,2.3223,215.35,215.31,7.2919752]
[1736066889280,2.3222,215.37,215.31,9.6146752]
[1736066891285,7.2919752,215.39,215.31,9.6146752]
[1736066891478,2.3222,215.36,215.31,9.6146752]
[1736066892381,2.3223,215.35,215.31,9.6146752]
[1736066894081,2.3224,215.34,215.3,2.3228]
[1736066894280,2.3224,215.34,215.3,9.6147752]
[1736066894679,2.3227,215.32,215.3,7.2919752]
[1736066895084,2.3227,215.32,215.29,6.33296573]
[1736066895284,7.2919752,215.37,215.29,6.33296573]
[1736066895483,2.3229,215.31,215.29,6.33296573]
[1736066900595,2.3229,215.31,215.28,7.2919752]
[1736066907694,2.3228,215.31,215.28,7.2919752]
[1736066908097,9.8919752,215.35,215.28,7.2919752]
[1736066909303,2.3226,215.33,215.28,7.2919752]
[1736066909603,9.8919752,215.35,215.28,7.2919752]
[1736066910003,2.3227,215.32,215.28,7.2919752]
[1736066910904,2.3228,215.31,215.28,7.2919752]
[1736066912805,2.3228,215.31,215.26,9.6151752]
[1736066917012,2.3229,215.3,215.26,9.6151752]
[1736066917609,7.2919752,215.33,215.26,7.2919752]
[1736066917816,2.323,215.29,215.26,7.2919752]
[1736066918215,2.323,215.29,215.25,2.3234]
[1736066920116,2.3231,215.28,215.24,13.5846752]
[1736066920711,2.3231,215.28,215.24,10.9846752]
[1736066921307,7.2919752,215.31,215.24,1.3692]
[1736066921508,2.3232,215.27,215.22,43.10823355]
[1736066921716,2.3232,215.27,215.22,50.40020875]
[1736066922615,7.2919752,215.29,215.22,50.40020875]
[1736066922616,2.3234,215.25,215.22,40.78463355]
[1736066924312,2.3233,215.26,215.22,40.78463355]
[1736066934228,2.3233,215.26,215.21,7.2919752]
[1736066937219,2.3235,215.25,215.21,7.2919752]
[1736066937425,7.2919752,215.27,215.21,7.2919752]
[1736066937922,2.3236,215.24,215.21,7.2919752]
[1736066940029,2.3238,215.22,215.18,7.2919752]
[1736066940829,9.8919752,215.25,215.18,7.2919752]
[1736066940830,2.3239,215.21,215.18,7.2919752]
[1736066942130,2.324,215.2,215.18,7.2919752]
[1736066942329,2.324,215.2,215.16,8.7518752]
[1736066946730,2.3241,215.19,215.16,8.7518752]
[1736066948326,7.2919752,215.23,215.16,8.7518752]
[1736066948535,2.3239,215.21,215.16,11.0762752]
[1736066949027,2.3239,215.21,215.16,3.7843]
[1736066949322,7.2919752,215.23,215.17,7.2919752]
[1736066949529,9.8919752,215.25,215.19,7.2919752]
[1736066949828,2.3236,215.24,215.19,7.2919752]
[1736066950029,7.2919752,215.25,215.19,7.2919752]
[1736066950333,2.6,215.26,215.21,7.2919752]
[1736066951536,2.3235,215.25,215.19,9.6160752]
[1736066955034,2.3238,215.22,215.19,7.2919752]
[1736066955632,2.3238,215.22,215.17,7.2919752]
[1736066956137,2.324,215.2,215.16,1.4599]
[1736066960240,2.3241,215.19,215.16,1.4599]
[1736066966048,2.3239,215.21,215.16,11.0761752]
[1736066966644,2.3239,215.21,215.17,2.3242]
[1736066968240,2.324,215.2,215.16,1.4599]
[1736066979460,4.9238,215.22,215.17,2.3242]
[1736066979659,4.9238,215.22,215.17,9.6161752]
[1736066981564,4.9238,215.22,215.17,2.3242]
[1736066986167,2.324,215.2,215.15,2.3245]
[1736066989862,2.324,215.2,215.15,9.6164752]
[1736066990270,2.3241,215.19,215.15,9.6164752]
[1736066990666,7.2919752,215.19,215.12,10.46064734]
[1736066990861,2.6,215.22,215.12,10.46064734]
[1736066990862,2.3245,215.16,215.12,10.46064734]
[1736066991061,7.2919752,215.17,215.12,10.46064734]
[1736066992167,7.2919752,215.17,215.12,8.96394734]
[1736066992168,2.3246,215.15,215.12,8.96394734]
[1736066992373,7.2919752,215.17,215.12,8.96394734]
[1736066992769,2.3245,215.15,215.12,8.96394734]
[1736066992967,9.8919752,215.17,215.12,8.96394734]
[1736066993873,7.2919752,215.15,215.12,8.96394734]
[1736066994469,2.3247,215.14,215.12,8.96394734]
[1736066994779,7.2919752,215.15,215.08,2.3252]
[1736066995073,9.6166752,215.13,215.07,9.6173752]
[1736066996266,2.3248,215.12,215.07,9.6173752]
[1736066996468,2.3248,215.12,215.07,7.2919752]
[1736066996971,2.3248,215.12,215.03,1.4872]
[1736066997171,2.3248,215.12,215.07,7.2919752]
[1736066997372,2.3248,215.12,215.07,9.6172752]
[1736066997677,7.2919752,215.13,215.03,1.4872]
[1736066997977,7.2919752,215.13,215.06,7.2919752]
[1736066998174,2.3251,215.1,215.06,7.2919752]
[1736067000577,2.3251,215.1,215.03,1.4872]
[1736067000781,2.3251,215.1,215.04,2.3256]
[1736067000970,2.3251,215.1,215.06,7.2919752]
[1736067001870,2.3248,215.13,215.08,7.2919752]
[1736067002273,2.6,215.15,215.08,7.2919752]
[1736067002777,7.2919752,215.17,215.03,1.4872]
[1736067002977,2.6,215.16,215.09,7.2919752]
[1736067003373,2.3246,215.14,215.09,7.2919752]
[1736067004282,2.3246,215.14,215.08,2.3251]
[1736067004578,2.3246,215.14,215.09,7.2919752]
[1736067006577,2.3247,215.13,215.06,2.3254]
[1736067006776,2.3247,215.13,215.09,7.2919752]
[1736067008184,2.3245,215.15,215.11,7.2919752]
[1736067008378,2.3245,215.15,215.13,7.2919752]
[1736067009676,2.3248,215.13,215.1,7.2919752]
[1736067010382,7.2919752,215.15,215.1,7.2919752]
[1736067010578,2.3248,215.12,215.1,7.2919752]
[1736067010778,2.6,215.17,215.05,6.96995297]
[1736067010779,7.2919752,215.13,215.05,6.96995297]
[1736067011180,2.3252,215.09,215.06,7.2919752]
[1736067012482,2.3252,215.09,215.05,6.96995297]
[1736067012678,2.3252,215.09,215.06,7.2919752]
[1736067013285,2.6,215.12,215.05,6.96995297]
[1736067013485,2.3252,215.08,215.05,14.26192817]
[1736067014178,2.3252,215.09,215.05,14.26192817]
[1736067016486,2.3252,215.09,215.07,7.2919752]
[1736067020390,2.3252,215.09,215.05,14.26192817]
[1736067020891,2.3252,215.09,215.05,6.96995297]
[1736067021090,2.3252,215.09,215.03,3.813]
[1736067021290,2.3252,215.09,215.05,7.2919752]
[1736067021492,2.3253,215.08,215.05,7.2919752]
[1736067024789,2.6,215.12,215.05,7.2919752]
[1736067025093,9.8919752,215.16,215.09,7.2919752]
[1736067025885,4.9245,215.16,215.11,7.2919752]
[1736067026086,2.6,215.16,215.11,7.2919752]
[1736067027490,2.3245,215.15,215.09,2.3251]
[1736067027691,2.6,215.16,215.11,7.2919752]
[1736067028485,2.3246,215.14,215.11,7.2919752]
[1736067031894,2.3245,215.16,215.11,7.2919752]
[1736067032096,7.2919752,215.17,215.11,7.2919752]
[1736067033296,2.6,215.18,215.11,7.2919752]
[1736067033499,2.3245,215.15,215.11,7.2919752]
[1736067034300,2.3245,215.15,215.1,2.325]
[1736067034505,2.3245,215.15,215.11,7.2919752]
[1736067042613,2.3244,215.16,215.11,9.6167752]
[1736067042808,2.3244,215.16,215.13,7.2919752]
[1736067043008,3.35913438,215.21,215.15,7.2919752]
[1736067044405,2.3241,215.19,215.15,7.2919752]
[1736067054118,2.3242,215.18,215.14,7.2919752]
[1736067057017,2.3242,215.18,215.14,9.6165752]
[1736067058615,3.35913438,215.21,215.14,9.6165752]
[1736067058616,2.3241,215.19,215.14,9.6165752]
[1736067059819,2.324,215.2,215.15,2.3245]
[1736067060122,2.324,215.2,215.14,7.2919752]
[1736067060823,2.324,215.2,215.15,2.3245]
[1736067064016,2.324,215.2,215.16,7.2919752]
[1736067064319,5.68303438,215.21,215.16,9.6162752]
[1736067064921,3.35913438,215.21,215.17,2.3243]
[1736067065925,2.3236,215.24,215.19,2.324]
[1736067066128,2.3236,215.24,215.2,7.2919752]
[1736067066916,68.23830078,215.25,215.2,7.2919752]
[1736067071028,68.23830078,215.25,215.2,9.6158752]
[1736067076823,73.20687598,215.25,215.18,9.6160752]
[1736067077227,2.3237,215.23,215.18,9.6160752]
[1736067077832,2.3238,215.22,215.18,9.6160752]
[1736067078032,7.2919752,215.21,215.12,4.2183]
[1736067078226,7.2919752,215.21,215.15,2.3245]
[1736067078426,2.324,215.2,215.15,2.3245]
[1736067080336,7.2919752,215.2,215.13,9.8919752]
[1736067081437,2.3244,215.16,215.13,9.8919752]
[1736067082436,2.3244,215.16,215.12,4.2183]
[1736067082639,2.3244,215.16,215.11,9.6167752]
[1736067084034,2.3244,215.16,215.12,2.3248]
[1736067084236,2.3244,215.16,215.11,7.2919752]
[1736067086441,2.3244,215.16,215.12,2.3248]
[1736067088735,7.2919752,215.18,215.12,2.3248]
[1736067088936,2.3243,215.18,215.13,9.6165752]
[1736067099044,7.2919752,215.2,215.13,7.2919752]
[1736067099341,9.8919752,215.22,215.15,7.2919752]
[1736067099747,2.3239,215.21,215.15,9.6163752]
[1736067101245,2.324,215.2,215.15,9.6163752]
[1736067102745,2.3238,215.21,215.16,2.3243]
[1736067108647,7.2919752,215.22,215.15,7.2919752]
[1736067108844,7.2919752,215.19,215.13,4.9246]
[1736067109045,7.2919752,215.19,215.13,2.3246]
[1736067110347,2.3242,215.18,215.13,2.3246]
[1736067110742,2.3242,215.18,215.14,2.3245]
[1736067117746,2.3242,215.18,215.14,9.6164752]
[1736067119847,2.3242,215.18,215.14,7.2919752]
[1736067120048,2.3242,215.18,215.15,2.3245]
[1736067121757,2.6,215.23,215.15,2.3245]
[1736067121956,7.2919752,215.21,215.15,2.3245]
[1736067123352,2.3241,215.2,215.15,2.3245]
[1736067132865,3.35849758,215.21,215.16,7.2919752]
[1736067133166,3.35849758,215.21,215.18,7.2919752]
[1736067135264,3.35849758,215.21,215.17,2.3243]
[1736067135467,5.68239758,215.21,215.17,2.3243]
[1736067137172,2.324,215.2,215.16,9.6163752]
[1736067143466,7.2919752,215.19,215.1,4.2274]
[1736067143671,2.3242,215.18,215.12,7.2919752]
[1736067144474,2.3242,215.18,215.13,2.3246]
[1736067145179,10.65047278,215.21,215.14,7.2919752]
[1736067145385,2.3241,215.19,215.16,7.2919752]
[1736067145875,2.3241,215.19,215.15,2.3244]
[1736067146078,2.3242,215.18,215.14,7.2919752]
[1736067149178,2.3242,215.18,215.14,9.6165752]
[1736067154181,2.3242,215.18,215.14,2.3246]
[1736067155884,10.65047278,215.21,215.13,7.2919752]
[1736067156086,2.3241,215.2,215.15,9.6164752]
[1736067156683,10.65047278,215.21,215.15,9.6164752]
[1736067156985,2.3241,215.19,215.15,9.6164752]
[1736067164997,2.3241,215.19,215.15,2.3245]
[1736067165192,2.3241,215.19,215.14,6.71406944]
[1736067165390,2.3241,215.19,215.14,14.00604464]
[1736067165897,2.324,215.2,215.16,7.2919752]
[1736067166507,2.324,215.2,215.15,2.3244]
[1736067166798,2.324,215.2,215.15,9.6163752]
[1736067180410,2.324,215.2,215.15,2.3244]
[1736067180815,7.2919752,215.19,215.14,6.71406944]
[1736067181008,7.2919752,215.17,215.14,6.71406944]
[1736067181411,2.3245,215.15,215.14,6.71406944]
[1736067184421,2.3247,215.14,215.1,51.02785665]
[1736067186919,7.2919752,215.17,215.1,51.02785665]
[1736067187120,2.3247,215.13,215.1,51.02785665]
[1736067189315,2.3248,215.12,215.1,51.02785665]